Cogmind - Beta 11.1 @@@ ROGUE MODE // 2022.04.28 @ 07:19:32 Player: Mousetrap_ Result: Destroyed by D-53 Grenadier with Mini Grenade Launcher Performance ------------- Evolutions (0) 0 Regions Visited (2) 400 Robots Destroyed (7) 35 Value Destroyed (206) 206 Prototype IDs (2) 40 Alien Tech Used (0) 0 Bonus (0) 0 TOTAL SCORE: 681 Bonus ------- None Cogmind --------- Core Integrity 0/250 Matter 234/300 Energy 100/100 System Corruption 0% Temperature Cool (0) Movement Core (150) Ox2 Location -10/Mines Parts ------- > --- POWER (1) -------- (None) > --- PROPULSION (2) --- (None) > --- UTILITY (2) ------ Small Storage Unit > --- WEAPON (2) ------- Mining Claw > --- INVENTORY (8) ---- High-capacity Storage Unit Heavy EM Pulse Gun Heavy EM Pulse Gun Medium Laser Small Laser Light EM Pulse Cannon Light EM Pulse Cannon Light EM Pulse Cannon Peak State ------------ > --- POWER ------------ Ion Engine > --- PROPULSION ------- Wheel Wheel > --- UTILITY ---------- Small Storage Unit Sensor Array > --- WEAPON ----------- Heavy EM Pulse Gun Heavy EM Pulse Gun > --- INVENTORY -------- Heavy EM Pulse Gun Heavy EM Pulse Gun Medium Laser Small Laser Light EM Pulse Cannon Light EM Pulse Cannon Light EM Pulse Cannon Grenade Launcher [Rating: 10] Favorites ----------- Power Ion Engine Engine Ion Engine Propulsion Wheel Wheel Wheel Utility Small Storage Unit Device Sensor Array Storage Small Storage Unit Weapon Heavy EM Pulse Gun Energy Gun Heavy EM Pulse Gun Energy Cannon Light EM Pulse Cannon Launcher Grenade Launcher Slashing Weapon Mining Claw Build | -11 -10 -10 ------- Run | Scr Mat Min Slots Evolved . | . . . Power . | . . . Propulsion . | . . . Utility . | . . . Weapon . | . . . Parts Attached 17 | 6 8 3 Power 1 | 1 . . Engine 1 | 1 . . Core . | . . . Reactor . | . . . Propulsion 2 | 2 . . Treads . | . . . Leg . | . . . Wheel 2 | 2 . . Hover . | . . . Flight . | . . . Utility 4 | 1 3 . Device 1 | . 1 . Storage 3 | 1 2 . Processor . | . . . Hackware . | . . . Protection . | . . . Artifact . | . . . Weapon 10 | 2 5 3 Energy Gun 7 | 2 4 1 Energy Cannon 1 | . 1 . Ballistic Gun . | . . . Ballistic Cannon . | . . . Launcher 1 | . . 1 Special Weapon . | . . . Impact Weapon . | . . . Slashing Weapon 1 | . . 1 Piercing Weapon . | . . . Special Melee Weapon . | . . . Unidentified Prototypes . | . . . Parts Lost 6 | . 5 1 Power 1 | . 1 . Propulsion 2 | . 2 . Utility 1 | . 1 . Weapon 2 | . 1 1 Highest Loss Streak 4 | . 4 1 To Critical Strikes . | . . . Average Slot Usage (%) 56 | . 76 42 Engine 4 | . 9 . Wheel 7 | . 17 . Device 2 | . 6 . Storage 13 | . 13 14 Energy Gun 21 | . 27 16 Slashing Weapon 6 | . . 11 Naked Turns . | . . . Heaviest Build 17 | 13 17 11 Greatest Support 20 | 20 20 3 Greatest Overweight (x) 3 | 3 3 3 Average Overweight (x) 1 | . . 3 Largest Inventory Capacity 20 | 8 20 8 Average Capacity 8 | 7 8 8 Most Carried 8 | 6 8 8 Average Carried 7 | 3 7 7 Final Capacity 8 | 8 8 8 Final Carried 8 | 6 8 8 Class Distribution -------------------- 100% | Mutant Dominant Class ---------------- Mutant | -10/Materials Mutant | -10/Mines Resources | -11 -10 -10 ----------- Run | Scr Mat Min Matter Collected 336 | 252 45 39 Remotely . | . . . Salvage Created 295 | 19 276 . Parts 12 | 3 9 . Haulers Intercepted . | . . . Recyclers Shooed . | . . . Parts Field Recycled . | . . . Retrieved Matter . | . . . Parts Self-Destructed . | . . . Prevented . | . . . Kills | -11 -10 -10 ------- Run | Scr Mat Min Combat Hostiles Destroyed 5 | . 5 . Guns 4 | . 4 . Classes Destroyed 3 | 1 2 . Tunneler 1 | 1 . . Recycler 1 | . 1 . Grunt 5 | . 5 . Best Kill Streak 5 | 1 5 . Combat Bots Only 4 | . 4 . Max Kills in Single Turn 1 | 1 1 . Gunslinging . | . . . Exploded . | . . . Melee . | . . . Uniques/NPCs Destroyed . | . . . Combat | -11 -10 -10 -------- Run | Scr Mat Min Damage Taken 634 | . 372 262 Core 252 | . 117 135 Absorbed by Shields . | . . . Core Remaining (%) 100 | 100 . . Volleys Fired 35 | 7 23 5 Largest 2 | 2 2 1 Hottest 90 | 90 90 30 Shots Fired 50 | 14 31 5 Gun 45 | 14 31 . Cannon . | . . . Launcher 5 | . . 5 Special . | . . . Kinetic . | . . . Thermal 14 | 14 . . Explosive 5 | . . 5 Electromagnetic 31 | . 31 . Robot Hit Streak 13 | 4 13 2 Robot Miss Streak 4 | 1 4 1 Penetration Max . | . . . Secondary Targets . | . . . Shots Hit Robots 29 | 9 17 3 Core Hits 14 | 1 7 6 Critical Kills . | . . . Critical Parts Destroyed . | . . . Critical Strikes . | . . . Melee Attacks . | . . . Impact . | . . . Slashing . | . . . Piercing . | . . . Sneak Attacks . | . . . Combat Hostiles . | . . . Follow-up Attacks . | . . . Damage Inflicted 620 | 131 427 62 Guns 417 | 131 286 . Cannons . | . . . Explosions 203 | . 141 62 Melee . | . . . Ramming . | . . . Kinetic . | . . . Thermal 272 | 131 141 . Explosive 62 | . . 62 Electromagnetic 286 | . 286 . Impact . | . . . Slashing . | . . . Piercing . | . . . Highest Corruption . | . . . Average Corruption . | . . . Corruption Purged . | . . . Corruption Blocked . | . . . Overload Shots . | . . . Overflow Damage . | . . . Projectiles . | . . . Explosions . | . . . Melee . | . . . Knockbacks . | . . . Impact . | . . . Kinetic . | . . . Secondary . | . . . Self-Inflicted Damage 39 | . 39 . Shots 1 | . 1 . Rammed . | . . . Targets Rammed . | . . . Kicked . | . . . Crushed . | . . . Highest Temperature 347 | 130 347 . Average Temperature 148 | 71 184 . Received Heat Transfer 201 | . 201 . Effects 4 | . 4 . Shutdowns 1 | . 1 . Energy Bleed 1 | . 1 . Interference 1 | . 1 . Damage (minor) 1 | . 1 . Siege Activations . | . . . Robots Corrupted 1 | . 1 . Combat Hostiles 1 | . 1 . Parts Fried . | . . . Impact Corruptions . | . . . Robots Melted . | . . . Combat Hostiles . | . . . Parts Melted . | . . . Heat Transferred 559 | 359 200 . Parts Sabotaged . | . . . Parts Stolen . | . . . Parts Stripped . | . . . Power Chain Reactions 2 | . 2 . Missiles Intercepted . | . . . Alert | -11 -10 -10 ------- Run | Scr Mat Min Peak Influence 191 | 5 191 129 Initial 66 | . 3 66 Average 62 | . 82 67 Maximum Alert Level . | . . . Low Security (%) 100 | 100 100 100 Level 1 . | . . . Level 2 . | . . . Level 3 . | . . . Level 4 . | . . . Level 5 . | . . . High Security . | . . . Max Security . | . . . Squads Dispatched 2 | . 2 . Investigation 2 | . 2 . Extermination . | . . . Reinforcement . | . . . Assault . | . . . Garrison . | . . . Intercept . | . . . Searches Triggered . | . . . Construction Impeded . | . . . Haulers Reinforced . | . . . Active Scanning Responses . | . . . Cargo Convoy Interrupts . | . . . Stealth | -11 -10 -10 --------- Run | Scr Mat Min Distress Signals 1 | . 1 . Communications Jammed . | . . . Distress Signals . | . . . Times Spotted 10 | . 8 2 Peak Tracking Total 5 | . 5 2 Tactical Retreats . | . . . Traps | -11 -10 -10 ------- Run | Scr Mat Min Traps Triggered . | . . . Indirectly . | . . . Trap Hack Attempts . | . . . Triggered . | . . . Disarmed . | . . . Reprogrammed . | . . . Reused . | . . . Traps Extracted . | . . . Installed . | . . . Triggered . | . . . Machines | -11 -10 -10 ---------- Run | Scr Mat Min Machines Disabled 1 | . 1 . Max in Single Turn 1 | . 1 . Machines Sabotaged . | . . . Garrisons Compromised . | . . . Overloaded Fab Kills . | . . . Hacking | -11 -10 -10 --------- Run | Scr Mat Min Machines Accessed 2 | . 2 . Terminals 2 | . 2 . Fabricators . | . . . Repair Stations . | . . . Recycling Units . | . . . Scanalyzers . | . . . Garrison Access . | . . . Total Hacks 9 | . 9 . Successful 8 | . 8 . Failed 1 | . 1 . Catastrophic . | . . . Database Lockouts . | . . . Manual . | . . . Terminals 9 | . 9 . Fabricators . | . . . Repair Stations . | . . . Recycling Units . | . . . Scanalyzers . | . . . Garrison Access . | . . . Terminal Hacks 8 | . 8 . Record 2 | . 2 . Prototype ID Bank 1 | . 1 . Emergency Access Points 2 | . 2 . Alert Level 2 | . 2 . Registered Components 1 | . 1 . Fabricator Hacks . | . . . Repair Station Hacks . | . . . Recycling Unit Hacks . | . . . Scanalyzer . | . . . Garrison Access Hacks . | . . . Unauthorized Hacks . | . . . Terminals . | . . . Fabricators . | . . . Repair Stations . | . . . Recycling Units . | . . . Scanalyzers . | . . . Garrison Access . | . . . Data Cores Recovered . | . . . Used . | . . . Hacking Detections 2 | . 2 . Full Trace Events 2 | . 2 . Feedback Events . | . . . Feedback Blocked . | . . . Robot Schematics Acquired . | . . . Robots Built . | . . . Authchips . | . . . Time . | . . . Total Robot Build Rating . | . . . Part Schematics Acquired . | . . . Parts Built . | . . . Authchips . | . . . Time . | . . . Total Part Build Rating . | . . . Parts Repaired . | . . . Time . | . . . Parts Recycled . | . . . Recycled Matter . | . . . Retrieved Matter . | . . . Retrieved Components . | . . . Parts Scanalyzed . | . . . Part Schematics Acquired . | . . . Parts Damaged . | . . . Bothacking | -11 -10 -10 ------------ Run | Scr Mat Min Used RIF Installer . | . . . Robots Hacked . | . . . Non-combat . | . . . Combat . | . . . Robot Hacks Applied . | . . . Relay Couplers Released . | . . . Fabnet Peak Effective % . | . . . Robots Rewired . | . . . Allies Hacked . | . . . Hacks Repelled . | . . . Allies | -11 -10 -10 -------- Run | Scr Mat Min Total Allies . | . . . Largest Group . | . . . Highest-Rated Group . | . . . Highest-Rated Ally . | . . . Total Orders . | . . . Ally Attacks . | . . . Total Damage . | . . . Kills . | . . . Allies Corrupted . | . . . Allies Melted . | . . . Intel | -11 -10 -10 ------- Run | Scr Mat Min Robot Analysis Total . | . . . Derelict Logs Recovered . | . . . Drone Launches . | . . . Drone Recoveries . | . . . Exploration | -11 -10 -10 ------------- Run | Scr Mat Min Turns Passed 654 | 98 225 331 Spaces Moved 372 | 75 139 158 Core 195 | 10 27 158 Treads . | . . . Legs . | . . . Wheels 177 | 65 112 . Hover . | . . . Flight . | . . . Fastest Speed 50 | 50 80 200 Average Speed 140 | 83 103 200 Slowest Speed 200 | 200 200 200 Overloaded Moves . | . . . Propulsion Burnouts . | . . . Robots Hopped . | . . . Cave-ins Triggered . | . . . Exploration Rate (%) 22 | 5 25 38 Regions Visited 2 Branch Regions 1 Pre-discovered Areas . | . . . Known Exits Taken . | . . . Unknown Exits Taken 2 | 1 1 . Scrap Searched 1 | . . 1 Spaces Dug . | . . . Terrain Destroyed 43 | . 5 38 Melee . | . . . Projectile . | . . . AOE 43 | . 5 38 Terrain Rammed . | . . . Walls Destroyed . | . . . Machines Disabled . | . . . Actions | -11 -10 -10 --------- Run | Scr Mat Min Total 453 | 93 192 168 Wait . | . . . Move 370 | 74 138 158 Hop . | . . . Pick Up 19 | 6 12 1 Fast Attach 9 | 6 3 . Attach 1 | . 1 . Detach . | . . . Swap 7 | . 4 3 Drop 12 | . 11 1 Fire 35 | 7 23 5 Melee . | . . . Ram . | . . . Kick . | . . . Crush . | . . . Escape Stasis . | . . . Rewire . | . . . Trap . | . . . Miscellaneous . | . . . Route ------- -11/Scrapyard -10/Materials -10/Mines History --------- Turn | Location | Event 30 | -11/Scrapyard | Discovered new exit (range 15) 99 | -11/Scrapyard | Entered Materials 250 | -10/Materials | Discovered new exit (range 14) 293 | -10/Materials | Lost 4 parts (1p2n1u) 324 | -10/Materials | Entered Mines 345 | -10/Mines | Build established: Mutant 470 | -10/Mines | Assembled infested the area 648 | -10/Mines | Core integrity fell below 50% 654 | -10/Mines | Core integrity fell below 20% 655 | -10/Mines | Destroyed by D-53 Grenadier with Mini Grenade Launcher Last Messages --------------- GOAL=ESCAPE Something is scanning the area. 00392_ Searching scrap... 00392_ Found Hcp. Storage Unit. 00392_ Found Mining Claw. 00392_ Found Med. Laser. 00392_ Found 39 Matter. 00393_ Acquired 39 matter. 00394_ Dropped Hvy. EM Pulse Gun. 00396_ Acquired Mining Claw. 00470_ ALERT: Infestation in the mines, dispatching Demolisher response squad. 00475_ K-01 Serf collects debris. 00647_ R-06 Scavenger destroyed. 00647_ K-01 Serf collects debris. 00649_ K-01 Serf destroyed. 00653_ The unstable cave ceiling collapses. 00653_ K-01 Serf collects debris. 00655_ Grenade Launcher destroyed. 00655_ T-07 Excavator destroyed. Map ----- +----------------------------------------------------+ | | | | | | | | | | | | | | | | | ?????????????????????????????????????????????????? | | ?????????????????????????????????????????????????? | | ???????????????????????####??????????????????????? | | ??????????????????????## ##????????????????????? | | ?????????????????????## ##???????????????????? | | ????????????????????## ##?####?????????????? | | ????????????????????# ### ##????????????? | | ????????????????????#k #????####????? | | ????????????????????# ##??## ##???? | | ????????????????????# ### #### ##??? | | ???????????? ???????## #?## ##?? | | ???????????? ??????## ##?## #?? | | ???????????? ###### ##?## #?? | | ???????????? # ##?### ##? | | ?????????????? = ##??### #? | | ???????????????????# %! #????## #? | | ???????????????????# == #?????## ##? | | ???????????????????# ! @ #??????# ##?? | | ???????????????????# ## #??????## ##??? | | ???????????????????## ## ####????## #???? | | ????????????????????## ### #?????# #???? | | ?????????????????????# ##?# ####### #???? | | ????????????????????? ##??#### #???? | | ???????????????????? ??????# #########???? | | ???????????????????# #??????#[!#???????????? | | ???????????????????# d ??????# #???????????? | | ???????????????????# d #?????## ######??????? | | ??????????????????? ????## ##?????? | | ?????????????????? ????# #?????? | | ??????????????????## #???## #?????? | | ???????????????????### ####????# ##?????? | | ?????????????????????# ##??????# ## ##??????? | | ????????????????????## ##?????# ##?###???????? | | ?????????####??????## ##????# ##???????????? | | ????????## ##???### ####?# ##??????????? | | ????????# ##### #### ########???? | | ????????# ## #?# ##??? | | ????????## #### #?## ##?? | | ?????????## ##??# #### #?? | | ??????????#### ####???# ## ## #?? | | ?????????????####??????## #### #?? | | ????????????????????????# ##?## #?? | +----------------------------------------------------+ Best States ------------- Heat Dissipation 25 Energy Generation 10 Energy Capacity 250 Matter Stores 300 Matter Capacity 300 Sight Range 16 Robot Scan Range 14 Terrain Scan Density 10 Evasion (%) 44 Item Schematics ----------------- None Robot Schematics ------------------ None Fabricated ------------ Nothing Alien Tech Used ----------------- None Achievements -------------- Power Corrupts Challenges ------------ None Game ------ Seed DefenseWarpLeg Manual? 0 Play Time 00:12:09 Cumulative 5.2 hours Start 2022.04.28 @ 07:08:26 End 2022.04.28 @ 07:19:32 Sessions 1 Manual Loads 0 Difficulty Rogue Special Mode None Game No. 5 Rogue 5 Adventurer 0 Explorer 0 Win Type - Total 0 Types 0/0/0/0/0/0/0/0/0 Lore% 1 Gallery% 9 Achievement% 8 Wizard Run 0 Options --------- ASCII 0 Keyboard 0 Movement Mouse Keybinds 0 Fullscreen 2 Font 18/Smallcaps Map View 76x50 Tactical HUD 1 Map Filters NONE Filters NONE Steam 1 RUN: 44c0abdf-dc6b-489d-ae42-6126d0074c4d